bitfinex/quotes_ETHUSD_20250107
["timestamp","ask_amount","ask_price","bid_price","bid_amount"]
[1736262468649,0.29113908,3526.1,3522.5,6.17953129]
[1736262468955,0.25,3524.6,3522.0,4.95087382]
[1736262469162,0.29113908,3526.1,3520.4,6.17953129]
[1736262469163,0.57774657,3522.6,3520.4,6.17953129]
[1736262469362,0.25,3524.6,3520.4,6.17953129]
[1736262469569,0.25,3524.6,3517.0,2.20695313]
[1736262469570,5.9228,3524.6,3521.5,6.17953129]
[1736262469769,0.245,3524.4,3520.6,6.17953129]
[1736262470114,5.6778,3524.4,3522.8,6.17953129]
[1736262470255,0.01,3523.4,3522.9,0.0075]
[1736262470454,0.01,3523.4,3522.8,4.74978961]
[1736262470653,0.01,3523.4,3522.8,5.22476857]
[1736262470853,0.56825575,3524.5,3522.8,4.74978961]
[1736262471127,0.56542575,3524.5,3524.3,6.17953129]
[1736262471258,0.245,3525.0,3521.7,1.5201]
[1736262471611,0.245,3525.0,3521.8,0.0075]
[1736262471820,0.245,3526.2,3521.8,0.0125]
[1736262472109,0.56393658,3526.8,3522.1,1.5775]
[1736262472110,0.245,3524.7,3522.1,1.5775]
[1736262472258,6.17953129,3525.5,3522.2,0.0075]
[1736262472615,6.17953129,3526.6,3522.1,1.5775]
[1736262473109,6.17953129,3526.6,3522.7,0.005]
[1736262473518,7.31558829,3526.6,3522.7,0.005]
[1736262473958,7.31558829,3526.6,3523.3,0.005]
[1736262474315,0.25,3526.0,3523.6,0.005]
[1736262474517,7.31558829,3526.6,3523.6,0.005]
[1736262474812,0.25,3526.5,3523.6,0.005]
[1736262475038,1.136057,3526.6,3523.6,0.005]
[1736262475338,1.136057,3526.6,3522.9,1.589]
[1736262475339,1.136057,3526.6,3524.3,0.005]
[1736262475473,1.136057,3526.6,3524.3,0.16589]
[1736262475672,1.136057,3526.6,3526.5,11.838]
[1736262475897,1.136057,3526.6,3526.5,0.015]
[1736262476114,0.25,3529.2,3525.5,1.5605]
[1736262476322,0.245,3529.4,3525.5,1.5605]
[1736262476525,6.17953129,3529.5,3525.6,36.589]
[1736262476727,0.25,3529.6,3525.7,1.589]
[1736262476874,0.25,3530.2,3525.7,1.589]
[1736262477069,0.25,3530.4,3525.7,1.589]
[1736262477270,6.17953129,3530.5,3525.7,1.589]
[1736262477271,0.64295313,3530.3,3525.8,0.1589]
[1736262477571,1.135302,3529.3,3526.1,2.83599]
[1736262477814,1.135302,3529.3,3527.5,2.83484]
[1736262478112,2.83278,3530.1,3526.7,2.83549]
[1736262478320,2.83278,3530.1,3525.8,0.1589]
[1736262478321,6.17953129,3530.5,3525.8,0.1589]
[1736262478474,6.17953129,3530.5,3529.3,0.01418]
[1736262478882,6.17953129,3530.5,3527.3,5.83502]
[1736262479086,6.17953129,3530.5,3527.5,2.83486]
[1736262479286,1.134123,3531.2,3527.4,0.883502]
[1736262479482,1.126623,3531.2,3527.6,1.1097555]
[1736262480022,6.17953129,3531.5,3529.5,2.83326]
[1736262480181,6.17953129,3531.5,3528.3,2.83418]
[1736262480182,6.42953129,3533.5,3530.8,2.83218]
[1736262480382,6.42953129,3533.5,3531.0,0.0075]
[1736262480383,2.83038,3533.1,3531.0,0.0075]
[1736262480579,1.133923,3531.8,3531.0,0.0075]
[1736262480820,0.01,3533.4,3531.0,0.0075]
[1736262481023,0.0025,3533.4,3531.3,2.83178]
[1736262481320,0.0025,3533.4,3531.5,2.83161]
[1736262481525,0.25,3534.7,3530.2,35.0]
[1736262481526,0.53912883,3535.4,3532.0,2.8312]
[1736262481731,6.17953129,3535.5,3532.6,2.83075]
[1736262481896,2.82861,3535.4,3532.7,1.588]
[1736262482101,6.17953129,3536.5,3532.8,35.0]
[1736262482283,1.133497,3534.0,3532.9,2.71757592]
[1736262482621,1.125997,3534.0,3533.1,1.5065]
[1736262482823,6.17953129,3536.5,3533.1,1.5065]
[1736262483119,6.17953129,3536.5,3534.2,2.82949]
[1736262483325,6.17953129,3536.5,3533.1,1.5065]
[1736262483326,2.82797,3536.1,3533.1,4.33683]
[1736262483510,6.17953129,3536.5,3534.1,2.82953]
[1736262483709,2.82785,3536.3,3533.3,2.83021]
[1736262484023,2.82785,3536.3,3533.2,0.433683]
[1736262484024,7.31231429,3536.5,3533.2,0.433683]
[1736262484236,6.17953129,3537.1,3534.5,2.8292]
[1736262484387,6.17953129,3537.1,3533.2,5.83029]
[1736262484388,0.25,3537.0,3534.3,2.82937]
[1736262484727,6.17953129,3536.1,3533.1,1.5065]
[1736262484883,6.17953129,3537.1,3535.0,2.82881]
[1736262485083,6.17953129,3537.1,3533.5,2.83005]
[1736262485291,0.64295313,3537.0,3533.6,0.283005]
[1736262485492,0.64295313,3537.0,3533.7,0.0075]
[1736262485493,6.17953129,3536.1,3533.7,0.0075]
[1736262485704,6.17953129,3536.1,3531.9,2.83133]
[1736262485919,1.6512,3535.8,3533.3,2.83017]
[1736262486120,1.6512,3535.8,3531.6,2.83157]
[1736262486326,1.6512,3535.8,3531.5,1.586]
[1736262486513,0.16512,3535.7,3532.1,2.83113]
[1736262486717,1.5923,3536.7,3531.7,2.83149]
[1736262486914,1.5923,3536.7,3531.6,0.1586]
[1736262486915,1.5923,3536.7,3533.4,35.0]
[1736262487114,2.82699,3537.4,3532.0,2.0]
[1736262487314,1.5923,3537.7,3535.3,2.82856]
[1736262487518,1.5923,3537.7,3535.7,2.82826]
[1736262487820,1.5923,3537.7,3534.5,1.586]
[1736262488005,6.17953129,3537.5,3535.3,2.82855]
[1736262488325,6.17953129,3537.5,3535.3,2.82857]
[1736262488541,6.17953129,3537.5,3535.3,2.82854]
[1736262488690,3.0,3538.0,3535.5,2.82839]
[1736262489033,2.82562,3539.1,3535.7,2.82829]
[1736262489334,1.131859,3539.5,3535.6,2.82837]
[1736262489516,1.524,3539.9,3535.5,1.5204]
[1736262489719,2.82433,3540.7,3538.2,2.82622]
[1736262489947,7.84273129,3540.9,3538.2,2.82622]
[1736262489948,1e-05,3538.4,3538.2,2.82622]
[1736262490099,6.17953129,3541.9,3538.2,2.82622]
[1736262490100,1.131214,3541.7,3538.3,35.0]
[1736262490292,0.3346278,3539.6,3539.4,2.8253]
[1736262490926,0.3346278,3539.6,3539.5,0.5575]
[1736262491127,7.8e-06,3539.6,3539.5,35.0]
[1736262491331,7.8e-06,3539.6,3539.5,37.71757592]
[1736262491629,1.5326,3543.0,3539.5,39.33377592]
[1736262491833,1.5326,3543.0,3539.6,0.55]
[1736262492059,1.5326,3543.0,3540.6,2.82434]
[1736262492212,1.5326,3543.0,3539.8,2.82501]
[1736262492560,4.35514,3543.0,3540.8,2.82414]
[1736262492856,1.5326,3543.0,3541.2,2.82387]
[1736262492988,1.5326,3543.0,3541.1,2.82395]
[1736262493194,1.5326,3543.0,3540.1,2.82474]
[1736262493428,2.82355,3541.7,3538.1,2.82634]
[1736262493629,0.25,3540.9,3536.0,2.82805]
[1736262493841,0.0075,3540.6,3536.1,2.82797]
[1736262494037,0.2425,3540.0,3536.2,0.441197]
[1736262494239,0.2425,3540.0,3537.4,2.8269]
[1736262494443,0.25,3541.4,3539.3,35.0]
[1736262494745,1.7721,3542.2,3539.3,35.0]
[1736262494969,1.5221,3542.2,3540.7,0.0075]
[1736262495177,1.5221,3542.2,3540.9,0.0075]
[1736262495473,1.5221,3542.2,3541.6,34.993496]
[1736262495608,1.5146,3542.2,3540.1,2.82476]
[1736262495811,1.5146,3542.2,3540.3,2.82461]
[1736262496057,2.82241,3543.1,3541.3,2.8238]
[1736262496205,0.01,3543.4,3540.5,2.82445]
[1736262496562,0.01,3543.4,3542.7,35.0]
[1736262496764,0.29194558,3545.4,3542.9,2.82254]
[1736262496966,0.5921278,3546.6,3544.1,2.815066]
[1736262496967,1.129692,3546.2,3544.1,2.815066]
[1736262497249,1.379692,3546.2,3542.3,1.584]
[1736262497405,0.25,3545.8,3544.2,35.0]
[1736262497622,0.25,3544.7,3542.6,2.82275]
[1736262497861,0.25,3544.3,3540.8,0.73227505]
[1736262498061,0.25,3543.5,3541.6,2.82352]
[1736262498261,0.25,3543.5,3540.8,2.8242]
[1736262498422,0.25,3543.5,3541.3,2.82381]
[1736262498620,1.5159,3544.4,3542.3,2.83047]
[1736262498820,1.5159,3544.4,3540.3,2.818106]
[1736262499020,1.5159,3544.4,3543.0,35.0]
[1736262499319,2.82007,3546.1,3540.5,2.82445]
[1736262499320,1.129018,3548.2,3541.9,1.583]
[1736262499670,2.8187,3547.8,3543.8,0.5575]
[1736262499836,1.129018,3548.2,3546.5,35.0075]
[1736262500041,1.129018,3548.2,3545.4,3.0]
[1736262500242,2.83098,3548.4,3545.8,2.82019]
[1736262500442,1.5172,3546.8,3544.4,1.5662]
[1736262500673,1.5172,3546.8,3543.2,1.5662]
[1736262501357,2.82043,3545.6,3543.8,2.82176]
[1736262501537,0.0075,3545.5,3543.7,2.82184]
[1736262501733,1.5172,3544.7,3543.1,2.82233]
[1736262502058,8.83995046,3544.7,3541.2,2.82388]
[1736262502276,8.83995046,3544.7,3540.2,0.282476]
[1736262502435,1.5172,3543.0,3540.3,2.82461]
[1736262502635,1.5172,3543.0,3540.4,2.82453]
[1736262502950,1.5172,3543.0,3540.2,0.282476]
[1736262503297,1.5172,3543.0,3539.8,2.82501]
[1736262503588,1.5172,3544.6,3539.5,7.32275046]
[1736262503791,1.5172,3544.6,3540.5,7.32275046]
[1736262504068,1.5172,3545.5,3543.3,0.0075]
[1736262504383,4.8593278,3546.6,3543.3,2.82215]
[1736262504676,1.8593278,3546.6,3543.4,0.282215]
[1736262504844,0.3421278,3546.6,3545.0,37.82085]
[1736262505093,0.2921278,3546.6,3545.0,35.0]
[1736262505273,0.2921278,3546.6,3545.1,7.32275046]
[1736262505571,0.2921278,3546.6,3545.9,2.82013]
[1736262505736,0.2921278,3546.6,3546.3,35.0]
[1736262506254,1.5474,3546.5,3543.8,2.82182]
[1736262506435,1.5474,3546.5,3544.1,2.82156]
[1736262506632,1.6159,3546.3,3542.6,1.78822969]
[1736262506833,1.6159,3545.7,3542.6,1.78172569]
[1736262507151,1.6159,3544.5,3540.1,0.25]
[1736262507355,1.6159,3544.5,3541.8,2.82335]
[1736262507537,1.60555622,3544.5,3541.0,35.0]
[1736262507736,1.60555622,3544.5,3541.1,2.71757592]
[1736262508035,1.60555622,3544.5,3541.9,7.32275046]
[1736262508345,2.81989,3546.3,3544.7,2.8211]
[1736262508346,2.81988,3546.3,3544.7,2.8211]
[1736262508553,3.1117878,3546.6,3544.4,35.0]
[1736262508840,0.2921278,3546.6,3543.9,7.32275046]
[1736262509017,0.2921278,3546.6,3544.0,0.73227505]
[1736262509312,0.2921278,3546.6,3544.1,35.0]
[1736262509313,2.82012,3546.0,3544.1,35.0]
[1736262509522,0.2921278,3546.6,3544.2,0.0075]
[1736262509644,0.2921278,3546.6,3543.9,7.01583074]
[1736262509848,0.2921278,3546.6,3544.4,2.8213]
[1736262510108,3.1117778,3546.6,3544.5,35.0]
[1736262510402,0.2921278,3546.6,3544.6,2.71107192]
[1736262510615,1.5186,3545.4,3543.1,1.5691]
[1736262510946,0.2921278,3546.6,3545.3,0.0075]
[1736262510947,1.5186,3546.4,3545.3,0.0075]
[1736262511203,0.2846278,3546.6,3545.2,30.32297106]
[1736262511515,0.2846278,3546.6,3545.3,2.71757592]
[1736262511648,0.2846278,3546.6,3545.2,2.82065]
[1736262511852,0.01281,3548.4,3545.3,7.32275046]
[1736262512147,2.81825,3548.3,3545.4,35.0]
[1736262512450,2.81947,3546.8,3545.4,35.0]
[1736262512669,1.558,3546.9,3545.4,35.0]
[1736262513077,0.01281,3548.4,3545.3,7.32275046]
[1736262513582,0.01281,3548.4,3543.9,0.33578178]
[1736262513583,0.01281,3548.4,3543.8,1.5126]
[1736262513781,2.81988,3546.3,3543.8,1.5126]
[1736262513981,2.81856,3547.9,3544.4,2.82127]
[1736262513982,2.82003,3546.1,3544.4,2.82127]
[1736262514194,2.81825,3548.3,3543.6,2.82191]
[1736262514195,8.97,3548.2,3543.7,35.0]
[1736262514392,2.82049,3545.5,3543.8,5.53934592]
[1736262514584,3.0,3547.7,3543.8,2.71757592]
[1736262514907,0.25666889,3547.6,3543.4,7.32275046]
[1736262515412,0.25666889,3547.6,3542.0,2.82325]
[1736262515609,0.56073237,3547.2,3541.9,1.5502]
[1736262515783,2.81904,3547.3,3543.4,5.64428]
[1736262515982,0.25666889,3547.1,3545.5,0.0075]
[1736262516301,0.25666889,3547.1,3545.0,2.82083]
[1736262516502,1.5553,3547.4,3544.0,2.82167]
[1736262516703,1.5553,3547.4,3545.2,2.82068]
[1736262516918,2.81971,3546.5,3545.3,35.0]
[1736262517141,1.5553,3545.3,3543.8,2.82175]
[1736262517448,2.81842,3548.1,3542.8,2.82262]
[1736262517744,2.81842,3548.1,3542.5,1.5502]
[1736262517745,2.82008,3546.0,3545.3,0.0093094]
[1736262517881,2.82049,3545.5,3543.8,5.48366024]
[1736262518087,5.48366024,3548.0,3544.3,2.82135]
[1736262518323,2.81989,3546.3,3544.5,0.0075]
[1736262518483,2.8188,3547.6,3544.4,0.282135]
[1736262518680,0.67298553,3547.9,3544.5,5.48366024]
[1736262518884,0.66548553,3547.8,3545.7,0.0075]
[1736262519111,0.24695291,3547.7,3545.9,5.48366024]
[1736262519311,0.24695291,3547.7,3545.6,35.0]
[1736262519312,0.24695291,3547.7,3546.1,5.48366024]
[1736262519584,0.01281,3548.4,3546.2,0.54836602]
[1736262519900,0.2598353,3548.3,3546.2,0.54836602]
[1736262520513,2.81912,3547.2,3546.1,1.128075]
[1736262520723,0.01,3548.4,3544.3,2.82143]
[1736262520913,0.01,3548.4,3545.4,35.0]
[1736262520914,1.5349,3548.3,3545.4,35.0]
[1736262521228,2.82817,3548.4,3545.4,35.0]
[1736262521229,2.81966,3546.6,3545.4,35.0]
[1736262521531,1.5349,3547.1,3544.6,2.82117]
[1736262521700,1.5349,3547.1,3544.7,0.282117]
[1736262521888,1.5349,3547.1,3544.7,1.12851]
[1736262522229,0.55,3547.0,3544.7,1.12851]
[1736262522385,3.0,3546.8,3544.7,1.12851]
[1736262522592,2.82088,3545.0,3544.7,1.12851]
[1736262522823,1.6058,3545.6,3542.8,2.82262]
[1736262522824,2.82116,3544.7,3542.8,2.82262]
[1736262523027,1.5983,3545.6,3543.5,35.0]
[1736262523186,1.5983,3545.6,3543.5,34.9944212]
[1736262523390,1.5983,3545.6,3543.0,1.129036]
[1736262523391,2.82103,3544.8,3543.0,1.129036]
[1736262523588,2.82112,3544.7,3543.3,2.82222]
[1736262523909,0.90366143,3545.5,3543.4,5.51187249]
[1736262524092,0.24745567,3545.5,3543.8,0.55]
[1736262524291,0.78083007,3547.8,3545.3,35.0]
[1736262524534,0.78083007,3547.8,3545.4,0.02820322]
[1736262524535,2.81961,3546.6,3545.4,0.02820322]
[1736262524826,2.81912,3547.2,3545.5,0.0075]
[1736262525026,2.81912,3547.2,3544.5,1.5965]
[1736262525027,0.00281,3546.3,3545.7,2.82031]
[1736262525227,0.00281,3546.3,3546.1,35.0]
[1736262525600,0.00281,3546.3,3545.8,0.282031]
[1736262525601,0.26082865,3547.1,3546.2,0.02819389]
[1736262525804,2.81845,3548.1,3545.8,0.282031]
[1736262526128,0.01,3548.4,3546.3,3.0]
[1736262526330,0.24897618,3548.0,3547.6,2.81878]
[1736262526516,0.51053128,3548.0,3547.4,2.81896]
[1736262526829,0.24897618,3548.0,3547.2,2.82656]
[1736262527034,0.0025,3548.4,3548.3,2.81825]
[1736262527205,1.127733,3550.8,3547.7,6.98446024]
[1736262527206,2.81725,3549.6,3547.7,1.5008]
[1736262527401,1.127733,3550.8,3547.8,5.63374024]
[1736262527701,1.632,3549.5,3547.8,0.15008]
[1736262527914,1.632,3549.5,3546.4,0.84836602]
[1736262528118,2.81777,3548.9,3547.3,2.81899]
[1736262528434,2.81818,3548.4,3546.9,2.8193]
[1736262528632,2.81818,3548.4,3547.1,2.8192]
[1736262528794,2.81856,3548.0,3546.5,2.81962]
[1736262528989,2.81859,3547.9,3546.6,0.281962]
[1736262529249,2.81824,3548.4,3546.6,0.281962]
[1736262529530,8.97,3550.7,3545.9,1.6007]
[1736262529531,4.4418,3549.5,3545.9,1.6007]
[1736262529715,2.81745,3549.3,3546.6,2.81959]
[1736262530051,2.81745,3549.3,3545.9,1.6007]
[1736262530052,2.81888,3547.5,3545.9,1.6007]
[1736262530245,0.26076549,3549.2,3545.9,1.6007]
[1736262530532,2.81781,3548.9,3546.9,2.81933]
[1736262530828,2.81781,3548.9,3547.2,0.0075]
[1736262531035,0.39710935,3548.8,3547.0,0.281933]
[1736262531230,0.65037484,3548.8,3545.8,5.76569124]
[1736262531468,5.48366024,3548.5,3544.8,0.30995867]
[1736262531750,5.6376,3547.6,3544.4,2.82132]
[1736262531923,3.0,3546.8,3544.5,0.282132]
[1736262532123,5.48366024,3547.1,3543.4,1.128657]
[1736262532326,2.81999,3546.1,3543.4,1.128657]
[1736262532531,4.3854,3546.5,3543.4,1.128657]
[1736262532742,0.55,3546.1,3543.1,7.04796024]
[1736262532913,2.82073,3545.2,3543.8,2.82181]
[1736262533113,2.82073,3545.2,3543.8,3.103991]
[1736262533321,4.3854,3546.5,3543.9,2.82175]
[1736262533561,1.5657,3546.5,3544.5,5.48366024]
[1736262533713,0.55,3546.2,3543.4,0.30995867]
[1736262533913,1.5657,3546.5,3543.1,7.04796024]
[1736262534314,2.82076,3545.2,3543.1,7.04796024]
[1736262534520,3.0,3546.3,3543.8,0.0075]
[1736262534521,2.8205,3545.5,3543.8,0.0075]
[1736262534744,2.82047,3545.5,3543.2,1.128929]
[1736262535057,3.0,3546.2,3543.2,1.128929]
[1736262535058,2.81369,3544.6,3543.3,0.29753735]
[1736262535212,2.82128,3544.5,3543.3,0.02821445]
[1736262535413,8.48366024,3546.0,3543.1,1.5643]
[1736262535649,3.0,3545.3,3543.1,0.01]
[1736262535830,2.8223,3543.2,3543.1,0.01]
[1736262536029,2.82185,3543.8,3543.1,0.01]
[1736262536264,1.5652,3544.9,3543.1,0.01]
[1736262536852,5.48366024,3544.7,3542.0,1.129225]
[1736262537061,3.08229546,3544.8,3542.0,1.129225]
[1736262537361,2.82169,3544.0,3541.9,2.8233]
[1736262537529,2.82169,3544.0,3541.5,1.5644]
[1736262537530,2.82271,3542.7,3541.6,1.129448]
[1736262537856,2.82304,3542.3,3540.7,1.5132]
[1736262538029,2.82304,3542.3,3538.8,2.6902]
[1736262538030,1.5021,3542.6,3539.9,1.6136]
[1736262538417,1.6248,3543.4,3540.4,5.48366024]
[1736262538615,2.82241,3543.1,3541.6,2.82355]
[1736262538853,2.82241,3543.1,3541.7,0.0282273]
[1736262538854,2.82239,3543.1,3541.7,0.0282273]
[1736262539055,2.8224,3543.1,3540.9,3.0]
[1736262539272,1.6248,3543.4,3541.2,3.0]
[1736262539561,1.08749756,3543.7,3541.3,3.0282239]
[1736262539791,1.08749756,3543.7,3541.8,8.48366024]
[1736262539923,1.07999756,3543.7,3543.5,0.0075]
[1736262540121,1.07999756,3544.5,3542.6,3.0]
[1736262540350,1.07999756,3544.5,3543.3,2.82222]
[1736262540551,1.07999756,3544.5,3544.3,0.0075]
[1736262540716,1.07999756,3544.5,3544.3,2.82888]
[1736262540922,1.07999756,3544.5,3544.4,0.0075]
[1736262541345,1.63124634,3546.6,3543.4,0.02821488]
[1736262541578,2.82045,3545.6,3544.1,2.82156]
[1736262541865,2.82023,3545.9,3543.9,0.0075]
[1736262542161,1.63124634,3546.6,3542.1,1.55]
[1736262542162,2.82166,3544.1,3542.1,1.55]
[1736262542360,2.82123,3544.6,3543.1,0.0075]
[1736262542521,1.5246,3545.4,3542.1,4.55]
[1736262542728,3.55,3544.8,3542.1,1.55]
[1736262542964,2.82154,3544.2,3542.7,2.82269]
[1736262543132,2.82078,3545.2,3542.1,1.55]
[1736262543133,2.82139,3544.4,3542.1,1.55]
[1736262543335,2.82119,3544.6,3542.2,0.02822121]
[1736262543524,2.82078,3545.2,3542.1,1.55]
[1736262543525,0.26047723,3544.3,3542.1,1.55]
[1736262543727,2.82151,3544.2,3542.1,1.55]
[1736262543973,2.82255,3542.9,3541.3,1.6254]
[1736262544160,2.82217,3543.4,3541.3,1.6254]
[1736262544362,5.17947595,3544.1,3541.3,1.6254]
[1736262544562,0.55,3543.9,3541.5,2.82365]
[1736262544767,2.82358,3541.6,3540.5,1.6247]
[1736262545065,3.0,3542.4,3539.6,1.6247]
[1736262545380,2.82221,3543.4,3538.1,0.01]
[1736262545381,3.0,3541.2,3538.2,4.45099]
[1736262545675,3.0,3541.2,3538.7,1.130272]
[1736262545676,5.48366024,3540.5,3538.7,1.130272]
[1736262545827,3.0,3540.4,3538.2,1.6247]
[1736262546031,5.48366024,3540.5,3538.1,0.01]
[1736262546032,2.82553,3539.2,3538.1,0.01]
[1736262546336,2.82571,3539.0,3538.1,0.01]
[1736262546537,0.53834,3537.2,3537.1,1.130701]
[1736262547062,0.53834,3537.2,3536.5,0.14420707]
[1736262547262,0.53084,3537.2,3536.5,0.14420707]
[1736262547464,0.53084,3537.2,3535.3,1.131186]
[1736262547676,5.48366024,3539.3,3535.4,0.26462357]
[1736262547841,2.82697,3537.4,3535.9,2.82809]
[1736262548027,3.0,3539.2,3535.5,2.82845]
[1736262548229,1.6425,3539.7,3536.5,5.48366024]
[1736262548428,2.82565,3539.1,3537.4,2.82688]
[1736262548672,1.6425,3539.7,3537.5,0.02826587]
[1736262548850,1.6425,3539.7,3536.8,0.0075]
[1736262549084,2.82562,3539.1,3537.6,0.0075]
[1736262549227,2.8254,3539.4,3538.0,2.82641]
[1736262549433,1.6425,3539.7,3538.1,0.02825466]
[1736262549729,1.6425,3539.7,3535.1,5.82288696]
[1736262549730,5.65114,3539.1,3536.2,2.82784]
[1736262549965,1.6346,3538.0,3536.0,0.0827]
[1736262550137,2.08903,3535.5,3535.4,0.26462357]
[1736262550365,2.08903,3535.5,3535.3,1.131224]
[1736262550366,1.92582453,3535.5,3535.3,1.131224]
[1736262550562,5.48366024,3538.4,3535.3,1.131224]
[1736262550802,5.48366024,3537.7,3535.4,0.02827708]
[1736262551101,5.48366024,3537.7,3535.4,0.02827606]
[1736262551102,3.0,3537.6,3535.4,0.02827606]
[1736262551313,3.0,3537.6,3534.4,0.14385026]
[1736262551314,2.82693,3537.4,3534.4,0.14385026]
[1736262551459,3.0,3537.6,3535.1,0.97874966]
[1736262551660,2.82742,3536.8,3535.1,0.97874966]
[1736262551867,0.16346,3537.9,3535.1,0.97874966]
[1736262551868,0.16346,3537.9,3535.2,0.02828178]
[1736262552062,2.98253,3537.9,3535.9,2.82811]
[1736262552303,2.82686,3537.5,3536.0,0.02827234]
[1736262552500,4.46105,3538.0,3536.0,3.02827234]
[1736262552501,1.6346,3538.0,3536.0,3.02827234]
[1736262552705,4.46108,3538.0,3536.4,2.8277]
[1736262553007,4.46108,3538.0,3536.5,0.0075]
[1736262553008,1.6346,3538.0,3536.5,0.0075]
[1736262553378,2.82728,3537.0,3535.4,2.82845]
[1736262553575,1.6346,3538.0,3534.5,0.14386244]
[1736262553576,1.6346,3538.0,3535.5,0.02827663]
[1736262553906,2.82712,3537.2,3534.3,2.82939]
[1736262554124,2.82784,3536.3,3535.2,0.02827892]
[1736262554285,2.82857,3535.4,3535.2,0.02827892]
[1736262554481,2.82863,3535.3,3534.3,0.144172]
[1736262554687,2.82863,3535.3,3534.6,1.131496]
[1736262554921,2.82909,3534.7,3534.6,6e-06]
[1736262555130,8.31275024,3534.7,3534.6,6e-06]
[1736262555622,8.31275024,3534.7,3533.1,0.01]
[1736262555623,2.83023,3533.3,3533.1,0.01]
[1736262555823,2.83024,3533.3,3533.1,0.01]
[1736262556000,2.82274,3533.3,3533.1,0.01]
[1736262556184,2.83027,3533.3,3533.1,0.01]
[1736262556392,2.83045,3533.0,3532.9,0.14409071]
[1736262556723,0.566034,3533.3,3528.1,0.26]
[1736262556724,1.5358,3533.1,3530.7,2.83226]
[1736262556924,2.83085,3532.5,3532.4,9.89e-06]
[1736262557128,8.48366024,3532.9,3530.5,0.9788]
[1736262557327,1.5358,3533.1,3530.4,0.005]
[1736262557328,2.83223,3530.8,3530.4,0.005]
[1736262557486,2.83223,3530.8,3530.6,0.1064182]
[1736262557687,2.83245,3530.5,3530.4,8.2e-06]
[1736262558093,5.48366024,3530.6,3530.0,2.64e-06]
[1736262558094,7.36858,3530.1,3530.0,2.64e-06]
[1736262558329,7.36858,3530.1,3527.8,0.14401411]
[1736262558330,2.83363,3529.1,3527.8,0.14401411]
[1736262558533,2.83363,3529.1,3526.8,0.9788]
[1736262558903,2.8343,3528.2,3526.4,2.83571]
[1736262559229,2.8343,3528.2,3525.9,0.9788]
[1736262559230,2.8343,3528.2,3526.1,2.83593]
[1736262559435,2.8343,3528.2,3526.2,2.83587]
[1736262559633,2.8343,3528.2,3525.9,0.9788]
[1736262559927,1.5358,3529.3,3525.9,6.46246024]
[1736262560234,0.55,3529.2,3526.9,0.9788]
[1736262560400,2.83425,3528.3,3527.0,0.02835533]
[1736262560618,2.83294,3529.9,3527.0,0.02835533]
[1736262560791,2.83302,3529.8,3527.0,2.86359533]
[1736262561129,2.8336,3529.1,3528.3,0.9788]
[1736262561288,2.83254,3530.4,3527.6,2.83476]
[1736262561509,2.83245,3530.5,3527.7,0.02834091]
[1736262561730,2.83424,3528.3,3527.7,0.02834091]
[1736262561904,0.566824,3528.3,3526.4,0.9788]
[1736262562104,1.6022,3529.3,3525.6,0.02834017]
[1736262562105,2.83416,3528.4,3525.9,2.83611]
[1736262562302,2.83416,3528.4,3525.6,0.9788]
[1736262562303,2.83467,3527.8,3525.6,0.9788]
[1736262562511,3.0,3529.0,3525.7,2.83626]
[1736262562732,5.66732,3529.0,3525.6,0.9788]
[1736262563002,3.0,3527.8,3525.6,0.9788]
[1736262563331,2.83585,3526.3,3525.6,0.9788]
[1736262563537,7.37072835,3528.5,3525.5,1.41707624]
[1736262563538,1.5962,3527.2,3525.5,1.41707624]
[1736262563755,1.5962,3527.2,3524.9,35.0]
[1736262563756,7.2678,3527.2,3524.9,35.0]
[1736262563910,0.38916685,3527.1,3524.9,35.0]
[1736262564235,0.38916685,3527.1,3524.0,1.12657815]
[1736262564236,2.83527,3527.0,3524.0,1.12657815]
[1736262564433,0.38916685,3527.1,3524.1,0.0283617]
[1736262564640,5.6716,3527.0,3524.8,0.9788]
[1736262564791,2.83584,3526.3,3524.8,3.81581]
[1736262564994,2.83467,3527.8,3524.8,3.81581]
[1736262564995,7.37072835,3528.6,3524.8,0.9788]
[1736262565334,2.83438,3528.1,3524.8,0.9788]
[1736262565527,3.0,3528.5,3524.9,0.02836509]
[1736262565837,2.83574,3526.5,3524.9,0.02836509]
[1736262566018,0.46155,3528.2,3524.9,0.02836509]
[1736262566019,2.83588,3526.3,3524.9,0.02836509]
[1736262566346,2.83616,3525.9,3524.0,0.9788]
[1736262566647,2.83667,3525.3,3523.7,0.336154]
[1736262566849,1.6205,3526.5,3523.7,0.336154]
[1736262567067,2.83738,3524.4,3523.7,0.336154]
[1736262567210,0.58054591,3526.0,3523.7,0.336154]
[1736262567407,5.6736,3524.4,3523.7,0.336154]
[1736262567612,2.83784,3523.8,3523.7,0.336154]
[1736262567848,8.51144,3523.8,3523.7,0.336154]
[1736262568048,2.83832,3523.2,3521.3,0.9788]
[1736262568259,8.51192,3523.2,3521.3,0.9788]
[1736262568466,2.8376,3524.2,3521.4,2.83977]
[1736262568670,0.25,3525.3,3521.3,8.34952835]
[1736262568951,2.83832,3523.3,3521.3,0.9788]
[1736262569251,3.405963,3523.3,3523.1,1e-05]
[1736262569412,5.6767,3523.2,3523.1,1e-05]
[1736262569612,5.6767,3523.2,3523.1,0.97881]
[1736262569922,0.25,3524.7,3523.1,1e-05]
[1736262570123,2.83828,3523.3,3523.1,1.22181]
[1736262570437,2.83706,3524.8,3523.2,35.0]
[1736262570616,3.0,3525.0,3523.3,0.02837945]
[1736262570810,3.0,3525.0,3523.4,0.9788]